fUSD/lending_fUSD_20240612
["ID","MTS","AMOUNT","RATE_DAILY","PERIOD"]
[329253747,1718201499222,-500.0,0.0002041,2]
[329253748,1718201499239,-285.84,0.0002041,2]
[329253749,1718201499275,-500.0,0.0002041,2]
[329253750,1718201499301,-500.0,0.0002041,2]
[329253751,1718201499330,-500.0,0.0002041,2]
[329253752,1718201499351,-500.0,0.0002041,2]
[329253753,1718201499374,-500.0,0.0002041,2]
[329253754,1718201499402,-500.0,0.0002041,2]
[329253755,1718201499430,-500.0,0.0002041,2]
[329253756,1718201499449,-500.0,0.0002041,2]
[329253757,1718201499503,-500.0,0.0002041,2]
[329253758,1718201499525,-541.44,0.0002041,2]
[329253759,1718201499542,-500.0,0.0002041,2]
[329253760,1718201499554,-500.0,0.0002041,2]
[329253761,1718201499571,-500.0,0.0002041,2]
[329253762,1718201499582,-500.0,0.0002041,2]
[329253763,1718201499595,-500.0,0.0002041,2]
[329253764,1718201499607,-500.0,0.0002041,2]
[329253765,1718201499624,-500.0,0.0002041,2]
[329253766,1718201499635,-500.0,0.0002041,2]
[329253767,1718201499646,-500.0,0.0002041,2]
[329253768,1718201499657,-500.0,0.0002041,2]
[329253769,1718201499668,-500.0,0.0002041,2]
[329253770,1718201499679,-500.0,0.0002041,2]
[329253771,1718201499690,-500.0,0.0002041,2]
[329253772,1718201499702,-500.0,0.0002041,2]
[329253773,1718201499712,-500.0,0.0002041,2]
[329253774,1718201499723,-500.0,0.0002041,2]
[329253775,1718201499734,-500.0,0.0002041,2]
[329253776,1718201499745,-500.0,0.0002041,2]
[329253777,1718201499756,-500.0,0.0002041,2]
[329253778,1718201499769,-500.0,0.0002041,2]
[329253779,1718201499780,-500.0,0.0002041,2]
[329253780,1718201499794,-500.0,0.0002041,2]
[329253781,1718201499806,-500.0,0.0002041,2]
[329253782,1718201499817,-500.0,0.0002041,2]
[329253783,1718201499829,-500.0,0.0002041,2]
[329253784,1718201499840,-500.0,0.0002041,2]
[329253785,1718201499851,-500.0,0.0002041,2]
[329253786,1718201499863,-235.42022534,0.0002041,2]
[329253787,1718201499885,-264.57977466,0.0002041,2]
[329253788,1718201499896,-500.0,0.0002041,2]
[329253789,1718201499910,-500.0,0.0002041,2]
[329253790,1718201499920,-500.0,0.0002041,2]
[329253791,1718201499936,-527.43,0.0002041,2]
[329253792,1718201499947,-500.0,0.0002041,2]
[329253793,1718201499959,-500.0,0.0002041,2]
[329253794,1718201499972,-500.0,0.0002041,2]
[329253795,1718201499984,-527.8723201,0.0002041,2]
[329253796,1718201500001,-253.39206544,0.0002041,2]
[329253797,1718201500012,-500.0,0.0002041,2]
[329253798,1718201500024,-500.0,0.0002041,2]
[329253799,1718201500035,-500.0,0.0002041,2]
[329253800,1718201500047,-500.0,0.0002041,2]
[329253801,1718201500058,-500.0,0.0002041,2]
[329253802,1718201500071,-500.0,0.0002041,2]
[329253803,1718201500082,-500.0,0.0002041,2]
[329253804,1718201500093,-500.0,0.0002041,2]
[329253805,1718201500104,-500.0,0.0002041,2]
[329253806,1718201500115,-500.0,0.0002041,2]
[329253807,1718201500127,-500.0,0.0002041,2]
[329253808,1718201500139,-500.0,0.0002041,2]
[329253809,1718201500158,-500.0,0.0002041,2]
[329253810,1718201500185,-500.0,0.0002041,2]
[329253811,1718201500197,-500.0,0.0002041,2]
[329253812,1718201500214,-500.0,0.0002041,2]
[329253813,1718201500227,-500.0,0.0002041,2]
[329253814,1718201500242,-461.79,0.0002041,2]
[329253815,1718201500255,-500.0,0.0002041,2]
[329253816,1718201500267,-500.0,0.0002041,2]
[329253817,1718201500278,-500.0,0.0002041,2]
[329253818,1718201500293,-500.0,0.0002041,2]
[329253819,1718201500307,-500.0,0.0002041,2]
[329253820,1718201500326,-500.0,0.0002041,2]
[329253821,1718201500347,-500.0,0.0002041,2]
[329253822,1718201500362,-500.0,0.0002041,2]
[329253823,1718201500377,-610.26,0.00020546,2]
[329253824,1718201500391,-500.0,0.00020547,2]
[329253825,1718201500404,-500.0,0.00020547,2]
[329253826,1718201500416,-500.0,0.00020547,2]
[329253827,1718201500430,-500.0,0.00020547,2]
[329253828,1718201500448,-500.0,0.00020547,2]
[329253829,1718201500462,-500.0,0.00020547,2]
[329253830,1718201500477,-614.11248163,0.00020547,2]
[329253831,1718201500489,-500.0,0.00020547,2]
[329253832,1718201500500,-500.0,0.00020547,2]
[329253833,1718201500513,-500.0,0.00020547,2]
[329253834,1718201500532,-500.0,0.00020547,2]
[329253835,1718201500546,-500.0,0.00020547,2]
[329253836,1718201500558,-500.0,0.00020547,2]
[329253837,1718201500570,-500.0,0.00020547,2]
[329253838,1718201500582,-500.0,0.00020547,2]
[329253839,1718201500593,-252.93444503,0.00020547,2]
[329253840,1718201500607,-500.0,0.00020547,2]
[329253841,1718201500619,-190.58313969,0.00020547,2]
[329253842,1718201500631,-500.0,0.00020547,2]
[329253843,1718201500646,-500.0,0.00020547,2]
[329253844,1718201500658,-500.0,0.00020547,2]
[329253845,1718201500672,-500.0,0.00020547,2]
[329253846,1718201500683,-404.6,0.00020547,2]
[329253847,1718201500695,-575.51,0.00020547,2]
[329253848,1718201500707,-316.80966618,0.00020547,2]
[329253849,1718201500722,-183.19033382,0.00020547,2]
[329253850,1718201500732,-500.0,0.00020547,2]
[329253851,1718201500746,-247.36169718,0.00020547,2]
[329253852,1718201500767,-252.63830282,0.00020547,2]
[329253853,1718201500781,-429.19753113,0.00020547,2]
[329253854,1718201500799,-70.80246887,0.00020547,2]
[329253855,1718201500815,-500.0,0.00020547,2]
[329253856,1718201500828,-528.37,0.00020547,2]
[329253857,1718201500844,-500.0,0.00020547,2]
[329253858,1718201500857,-134.73997745,0.00020547,2]
[329253859,1718201500891,-503.69347592,0.00020547,2]
[329253860,1718201500902,-500.0,0.00020547,2]
[329253861,1718201500918,-500.0,0.00020547,2]
[329253862,1718201500929,-264.76727732,0.00020547,2]
[329253863,1718201500996,-500.0,0.00019178,2]
[329253864,1718201501013,-48.66454103,0.00020547,2]
[329253865,1718201501027,-186.56818165,0.00020547,2]
[329253866,1718201501042,-150.0,0.00020547,2]
[329253867,1718201501055,-500.0,0.00020547,2]
[329253868,1718201501075,-500.0,0.00020547,2]
[329253869,1718201501090,-500.0,0.00020547,2]
[329253870,1718201501101,-243.45181835,0.00020547,2]
[329253871,1718201501117,-256.54818165,0.00020547,2]
[329253872,1718201501129,-426.39181835,0.00020547,2]
[329253873,1718201501146,-73.60818165,0.00020547,2]
[329253874,1718201501176,-256.76735085,0.00020547,2]
[329253875,1718201501198,-243.23264915,0.00020547,2]
[329253876,1718201501210,-135.47105185,0.00020547,2]
[329253877,1718201501224,-258.20894815,0.00020547,2]
[329253878,1718201501237,-500.0,0.00020547,2]
[329253879,1718201501250,-500.0,0.00020547,2]
[329253880,1718201501262,-500.0,0.00020547,2]
[329253881,1718201501272,-500.0,0.00020547,2]
[329253882,1718201501281,-500.0,0.00020547,2]
[329253883,1718201501299,-500.0,0.00020547,2]
[329253884,1718201501312,-500.0,0.00020547,2]
[329253885,1718201501322,-107.60105185,0.00020547,2]
[329253886,1718201501335,-324.23779872,0.00020547,2]
[329253887,1718201501347,-68.16114943,0.00020547,2]
[329253888,1718201501359,-500.0,0.00020547,2]
[329253889,1718201501370,-500.0,0.00020547,2]
[329253890,1718201501381,-500.0,0.00020547,2]
[329253891,1718201501391,-500.0,0.00020547,2]
[329253892,1718201501403,-186.61833403,0.00020547,2]
[329253893,1718201501556,-155.0,0.00015031,2]
[329253894,1718201501567,-500.0,0.00019315,2]
[329253895,1718201501577,-313.38166597,0.00020547,2]
[329253896,1718201501587,-500.0,0.00020547,2]
[329253897,1718201501597,-500.0,0.00020547,2]
[329253898,1718201501609,-500.0,0.00020547,2]
[329253899,1718201501620,-500.0,0.00020547,2]
[329253900,1718201501630,-500.0,0.00020547,2]
[329253901,1718201501641,-500.0,0.00020547,2]
[329253902,1718201501651,-544.2,0.00020547,2]
[329253903,1718201501661,-500.0,0.00020547,2]
[329253904,1718201501671,-500.0,0.00020547,2]
[329253905,1718201501681,-500.0,0.00020547,2]
[329253906,1718201501692,-500.0,0.00020547,2]
[329253907,1718201501702,-500.0,0.00020547,2]
[329253908,1718201501712,-508.96,0.00020547,2]
[329253909,1718201501723,-500.0,0.00020547,2]
[329253910,1718201501733,-500.0,0.00020547,2]
[329253911,1718201501743,-500.0,0.00020547,2]
[329253912,1718201501754,-500.0,0.00020547,2]
[329253913,1718201501765,-500.0,0.00020547,2]
[329253914,1718201501776,-291.87061419,0.00020547,2]
[329253915,1718201501786,-500.0,0.00020547,2]
[329253916,1718201501796,-500.0,0.00020547,2]
[329253917,1718201501806,-500.0,0.00020547,2]
[329253918,1718201501816,-500.0,0.00020547,2]
[329253919,1718201501827,-500.0,0.00020547,2]
[329253920,1718201501838,-500.0,0.00020547,2]
[329253921,1718201501849,-500.0,0.00020547,2]
[329253922,1718201501859,-500.0,0.00020547,2]
[329253923,1718201501871,-500.0,0.00020547,2]
[329253924,1718201501882,-500.0,0.00020547,2]
[329253925,1718201501893,-500.0,0.00020547,2]
[329253926,1718201501904,-393.7,0.00020547,2]
[329253927,1718201501914,-500.0,0.00020547,2]
[329253928,1718201501924,-230.17,0.00020547,2]
[329253929,1718201501935,-500.0,0.00020547,2]
[329253930,1718201501947,-500.0,0.00020547,2]
[329253931,1718201501957,-500.0,0.00020547,2]
[329253932,1718201501969,-500.0,0.00020547,2]
[329253933,1718201501979,-500.0,0.00020547,2]
[329253934,1718201501991,-500.0,0.00020547,2]
[329253935,1718201502006,-500.0,0.00020547,2]
[329253936,1718201502018,-614.06,0.00020547,2]
[329253937,1718201502029,-419.26,0.00020547,2]
[329253938,1718201502042,-500.0,0.00020547,2]
[329253939,1718201502053,-182.68126,0.00020547,2]
[329253940,1718201502064,-500.0,0.00020547,2]
[329253941,1718201502075,-500.0,0.00020547,2]
[329253942,1718201502086,-500.0,0.00020547,2]
[329253943,1718201502097,-500.0,0.00020547,2]
[329253944,1718201502109,-500.0,0.00020547,2]
[329253945,1718201502121,-500.0,0.00020547,2]
[329253946,1718201502133,-500.0,0.00020547,2]
[329253947,1718201502145,-500.0,0.00020547,2]
[329253948,1718201502175,-500.0,0.00020547,2]
[329253949,1718201502187,-500.0,0.00020547,2]
[329253950,1718201502199,-500.0,0.00020547,2]
[329253951,1718201502211,-500.0,0.00020547,2]
[329253952,1718201502224,-500.0,0.00020547,2]
[329253953,1718201502235,-299.3,0.00020547,2]
[329253954,1718201502249,-500.0,0.00020547,2]
[329253955,1718201502260,-500.0,0.00020547,2]
[329253956,1718201502272,-500.0,0.00020547,2]
[329253957,1718201502282,-206.41,0.00020547,2]
[329253958,1718201502297,-500.0,0.00020547,2]
[329253959,1718201502310,-500.0,0.00020547,2]
[329253960,1718201502327,-500.0,0.00020547,2]
[329253961,1718201502342,-500.0,0.00020547,2]
[329253962,1718201502355,-500.0,0.00020547,2]
[329253963,1718201502368,-500.0,0.00020547,2]
[329253964,1718201502379,-500.0,0.00020547,2]
[329253965,1718201502390,-500.0,0.00020547,2]
[329253966,1718201502401,-500.0,0.00020547,2]
[329253967,1718201502414,-527.43,0.00020547,2]
[329253968,1718201502426,-500.0,0.00020547,2]
[329253969,1718201502437,-500.0,0.00020547,2]
[329253970,1718201502448,-500.0,0.00020547,2]
[329253971,1718201502459,-500.0,0.00020547,2]
[329253972,1718201502472,-500.0,0.00020547,2]
[329253973,1718201502489,-500.0,0.00020547,2]
[329253974,1718201502501,-500.0,0.00020547,2]
[329253975,1718201502513,-500.0,0.00020547,2]
[329253976,1718201502531,-500.0,0.00020547,2]
[329253977,1718201502546,-500.0,0.00020547,2]
[329253978,1718201502557,-500.0,0.00020547,2]
[329253979,1718201502568,-500.0,0.00020547,2]
[329253980,1718201502584,-500.0,0.00020547,2]
[329253981,1718201502596,-500.0,0.00020547,2]
[329253982,1718201502606,-500.0,0.00020547,2]
[329253983,1718201502620,-500.0,0.00020547,2]
[329253984,1718201502631,-500.0,0.00020547,2]
[329253985,1718201502643,-500.0,0.00020547,2]
[329253986,1718201502656,-500.0,0.00020547,2]
[329253987,1718201502667,-500.0,0.00020547,2]
[329253988,1718201502678,-500.0,0.00020547,2]
[329253989,1718201502689,-500.0,0.00020547,2]
[329253990,1718201502701,-500.0,0.00020547,2]
[329253991,1718201502718,-500.0,0.00020547,2]
[329253992,1718201502731,-159.606,0.00020561,2]
[329253993,1718201502751,-3800.7007849,0.00020627,2]
[329253994,1718201502763,-500.0,0.00020684,2]
[329253995,1718201502785,-367.611845,0.00020684,2]
[329253996,1718201502802,-198.627177,0.00020684,2]
[329253997,1718201502814,-198.627177,0.00020684,2]
[329253998,1718201502824,-500.0,0.00020684,2]
[329253999,1718201502835,-447.89,0.00020684,2]
[329254000,1718201502846,-478.91952894,0.00020684,2]
[329254001,1718201502859,-155.74,0.00020684,2]
[329254002,1718201502870,-500.0,0.00020684,2]
[329254003,1718201502882,-500.0,0.00020684,2]
[329254004,1718201502893,-500.0,0.00020684,2]
[329254005,1718201502904,-479.12,0.00020684,2]
[329254006,1718201502918,-500.0,0.00020684,2]
[329254007,1718201502929,-500.0,0.00020684,2]
[329254008,1718201502940,-500.0,0.00020684,2]
[329254009,1718201502953,-500.0,0.00020684,2]
[329254010,1718201502965,-575.51,0.00020684,2]
[329254011,1718201502975,-500.0,0.00020684,2]
[329254012,1718201502992,-500.0,0.00020684,2]
[329254013,1718201503015,-500.0,0.00020684,2]
[329254014,1718201503053,-500.0,0.00020684,2]
[329254015,1718201503088,-500.0,0.00020684,2]
[329254016,1718201503110,-528.37,0.00020684,2]
[329254017,1718201503128,-500.0,0.00020684,2]
[329254018,1718201503147,-500.0,0.00020684,2]
[329254019,1718201503177,-500.0,0.00020684,2]
[329254020,1718201503193,-500.0,0.00020684,2]
[329254021,1718201503209,-150.0,0.00020684,2]
[329254022,1718201503224,-500.0,0.00020684,2]
[329254023,1718201503242,-500.0,0.00020684,2]
[329254024,1718201503257,-500.0,0.00020684,2]
[329254025,1718201503271,-500.0,0.00020684,2]
[329254026,1718201503287,-500.0,0.00020684,2]
[329254027,1718201503307,-500.0,0.00020684,2]
[329254028,1718201503319,-425.55383017,0.00020684,2]
[329254029,1718201503334,-500.0,0.00020684,2]
[329254030,1718201503355,-500.0,0.00020684,2]
[329254031,1718201503377,-621.48720606,0.00020684,2]
[329254032,1718201503391,-500.0,0.00020684,2]
[329254033,1718201503410,-500.0,0.00020684,2]
[329254034,1718201503431,-500.0,0.00020684,2]
[329254035,1718201503450,-500.0,0.00020684,2]
[329254036,1718201503465,-191.34579788,0.00020684,2]
[329254037,1718201503477,-500.0,0.00020684,2]
[329254038,1718201503491,-500.0,0.00020684,2]
[329254039,1718201503518,-500.0,0.00020684,2]
[329254040,1718201503531,-500.0,0.00020684,2]
[329254041,1718201503543,-500.0,0.00020684,2]
[329254042,1718201503564,-500.0,0.00020684,2]
[329254043,1718201503583,-500.0,0.00020684,2]
[329254044,1718201503613,-500.0,0.00020684,2]
[329254045,1718201503640,-128.37465637,0.00020684,2]
[329254046,1718201503675,-251.68887959,0.00020684,2]
[329254047,1718201503696,-508.96,0.00020684,2]
[329254048,1718201503719,-500.0,0.00020684,2]
[329254049,1718201503734,-500.0,0.00020684,2]
[329254050,1718201503749,-500.0,0.00020684,2]
[329254051,1718201503760,-500.0,0.00020684,2]
[329254052,1718201503774,-500.0,0.00020684,2]
[329254053,1718201503796,-500.0,0.00020684,2]
[329254054,1718201503816,-500.0,0.00020684,2]
[329254055,1718201503834,-240.46,0.00020684,2]
[329254056,1718201503852,-500.0,0.00020684,2]
[329254057,1718201503874,-500.0,0.00020684,2]
[329254058,1718201503887,-500.0,0.00020684,2]
[329254059,1718201503898,-100.85770455,0.00020684,2]
[329254060,1718201503918,-399.14229545,0.00020684,2]
[329254061,1718201503932,-4.89095498,0.00020684,2]
[329254062,1718201503960,-495.10904502,0.00020684,2]
[329254063,1718201503974,-500.0,0.00020684,2]
[329254064,1718201503986,-500.0,0.00020684,2]
[329254065,1718201503998,-500.0,0.00020684,2]
[329254066,1718201504014,-500.0,0.00020684,2]
[329254067,1718201504028,-500.0,0.00020684,2]
[329254068,1718201504052,-500.0,0.00020684,2]
[329254069,1718201504065,-500.0,0.00020684,2]
[329254070,1718201504086,-500.0,0.00020684,2]
[329254071,1718201504098,-500.0,0.00020684,2]
[329254072,1718201504123,-378.29824287,0.00020684,2]
[329254073,1718201505061,-121.70175713,0.00020684,2]
[329254074,1718201505073,-446.96,0.00020684,2]
[329254075,1718201505085,-500.0,0.00020684,2]
[329254076,1718201505097,-500.0,0.00020684,2]
[329254077,1718201505108,-500.0,0.00020684,2]
[329254078,1718201505124,-500.0,0.00020684,2]
[329254079,1718201505135,-500.0,0.00020684,2]
[329254080,1718201505147,-500.0,0.00020684,2]
[329254081,1718201505176,-500.0,0.00020684,2]
[329254082,1718201505187,-500.0,0.00020684,2]
[329254083,1718201505199,-237.84,0.00020684,2]
[329254084,1718201505211,-500.0,0.00020684,2]
[329254085,1718201505222,-500.0,0.00020684,2]
[329254086,1718201505234,-500.0,0.00020684,2]
[329254087,1718201505245,-500.0,0.00020684,2]
[329254088,1718201505256,-500.0,0.00020684,2]
[329254089,1718201505267,-500.0,0.00020684,2]
[329254090,1718201505280,-500.0,0.00020684,2]
[329254091,1718201505295,-500.0,0.00020684,2]
[329254092,1718201505307,-500.0,0.00020684,2]
[329254093,1718201505318,-500.0,0.00020684,2]
[329254094,1718201505331,-500.0,0.00020684,2]
[329254095,1718201505342,-500.0,0.00020684,2]
[329254096,1718201505361,-500.0,0.00020684,2]
[329254097,1718201505379,-500.0,0.00020684,2]
[329254098,1718201505391,-500.0,0.00020684,2]
[329254099,1718201505403,-527.43,0.00020684,2]
[329254100,1718201505415,-339.2,0.00020684,2]
[329254101,1718201505429,-500.0,0.00020684,2]
[329254102,1718201505440,-500.0,0.00020684,2]
[329254103,1718201505453,-500.0,0.00020684,2]
[329254104,1718201505465,-157.2,0.00020684,2]
[329254105,1718201505480,-500.0,0.00020684,2]
[329254106,1718201505498,-151.0,0.00020684,2]
[329254107,1718201505515,-500.0,0.00020684,2]
[329254108,1718201505531,-500.0,0.00020684,2]
[329254109,1718201505543,-500.0,0.00020684,2]
[329254110,1718201505554,-500.0,0.00020684,2]
[329254111,1718201505565,-500.0,0.00020684,2]
[329254112,1718201505577,-500.0,0.00020684,2]
[329254113,1718201505589,-500.0,0.00020684,2]
[329254114,1718201505600,-500.0,0.00020684,2]
[329254115,1718201505611,-500.0,0.00020684,2]
[329254116,1718201505626,-500.0,0.00020684,2]
[329254117,1718201505636,-202.477366,0.00020684,2]
[329254118,1718201505647,-523.6,0.00020684,2]
[329254119,1718201505658,-500.0,0.00020684,2]
[329254120,1718201505669,-202.477366,0.00020684,2]
[329254121,1718201505680,-500.0,0.00020684,2]
[329254122,1718201505690,-500.0,0.00020684,2]
[329254123,1718201505704,-500.0,0.00020684,2]
[329254124,1718201505717,-500.0,0.00020684,2]
[329254125,1718201505744,-500.0,0.00020684,2]
[329254126,1718201505756,-10388.57151087,0.000207,2]
[329254127,1718201506557,-2192.31003432,0.000207,2]
[329254128,1718201527775,-527.35428,0.00014,2]
[329254129,1718201531937,2440.6402,0.000139,2]
[329254131,1718201581753,159.00205297,0.000139,2]
[329254132,1718201584791,289.98015035,0.000139,2]
[329254133,1718201588381,4761.39790031,0.000139,2]
[329254134,1718201595413,1364.00611956,0.000139,2]
[329254135,1718201598404,155.0,0.000139,2]
[329254136,1718201599995,958.18763192,0.00013205,2]
[329254137,1718201602806,289.98015035,0.000139,2]
[329254138,1718201603719,551.53564297,0.000139,2]
[329254139,1718201604387,4761.39790031,0.000139,2]
[329254140,1718201614753,180.74513477,0.000139,2]
[329254141,1718201615436,1364.00611956,0.000139,2]
[329254142,1718201615895,478.4394785,0.00013205,2]
[329254143,1718201618788,289.98015035,0.000139,2]
[329254144,1718201621689,551.14331119,0.000139,2]
[329254145,1718201626373,4761.39790031,0.000139,2]
[329254146,1718201630723,180.64277507,0.000139,2]
[329254147,1718201633422,1279.60615132,0.000139,2]
[329254148,1718201633936,219.02483678,0.000139,2]
[329254149,1718201634796,337.70043005,0.000139,2]
[329254150,1718201642393,4761.39790031,0.000139,2]
[329254151,1718201662380,1024.93895417,0.000139,2]
[329254155,1718201767578,323.2,0.00025045,120]
[329254156,1718201767829,323.2,0.00027322,120]
[329254157,1718201788440,156.26119827,0.000139,2]
[329254159,1718201882814,164.66,0.0001393,2]
[329254160,1718202002599,150.0,0.0001393,2]
[329254161,1718202002783,150.0,0.0001393,2]
[329254162,1718202003212,150.0,0.0001393,2]
[329254163,1718202003433,150.0,0.0001393,2]
[329254164,1718202003639,150.0,0.0001393,2]
[329254165,1718202003838,150.0,0.0001393,2]
[329254166,1718202004071,150.0,0.0001393,2]
[329254167,1718202004437,150.0,0.0001393,2]
[329254168,1718202004612,150.0,0.0001393,2]
[329254169,1718202004814,150.0,0.0001393,2]
[329254170,1718202005003,150.0,0.0001393,2]
[329254180,1718202310539,347.36,0.00025577,120]
[329254181,1718202340815,183.03,0.00013542,2]
[329254183,1718202429486,19784.12334789,0.00013542,2]
[329254184,1718202449459,19784.12334789,0.00013542,2]
[329254185,1718202465467,19784.12334789,0.00013542,2]
[329254186,1718202483480,7984.788936,0.00013542,2]
[329254187,1718202501909,616.0,0.000181,10]
[329254196,1718202634813,-4293.26084929,0.00014325,2]
[329254197,1718202634831,-1249.76802523,0.00014326,2]
[329254198,1718202634847,-206.08705978,0.00014327,2]
[329254199,1718202634860,-424.4611634,0.00014327,2]
[329254200,1718202634878,-161.67277582,0.00014328,2]
[329254201,1718202634889,-5585.25126994,0.00014328,2]
[329254202,1718202634900,-162.80154305,0.00014363,2]
[329254203,1718202634914,-1251.61364816,0.00014465,2]
[329254204,1718202634930,-3755.45432381,0.00014465,2]
[329254205,1718202634940,-209.52678916,0.00014465,2]
[329254206,1718202634978,-55.0740845,0.00014465,2]
[329254212,1718202640080,-738.5467845,0.00014465,2]
[329254216,1718202640100,-998.19811259,0.00014465,2]
[329254217,1718202640117,-205.70870175,0.00014466,2]
[329254218,1718202640141,-18534.49594933,0.00014467,2]
[329254219,1718202646598,-1072.04354635,0.00014466,2]
[329254221,1718202646640,-4491.47400839,0.00014467,2]
[329254222,1718202646656,-2755.72302469,0.00014469,2]
[329254223,1718202646681,-359.61,0.00014475,2]
[329254224,1718202646724,-23801.18,0.00014475,2]
[329254225,1718202646747,-150.99,0.00014475,2]
[329254226,1718202646767,-1904.39,0.00015097,2]
[329254227,1718202646802,-499.99,0.00015097,2]
[329254228,1718202646830,-150.99,0.00015097,2]
[329254229,1718202646846,-678.32,0.00015097,2]
[329254230,1718202646861,-3376.79,0.00015097,2]
[329254231,1718202646880,-482.66,0.00015097,2]
[329254232,1718202646892,-424.94,0.00016817,2]
[329254233,1718202646915,-20473.95,0.00016848,2]
[329254234,1718202647147,-200.0,0.00016927,2]
[329254235,1718202647164,-7119.3,0.00016936,2]
[329254236,1718202647184,-1213.35,0.00016948,2]
[329254237,1718202647202,-705.02,0.00016957,2]
[329254238,1718202647241,-250.0,0.00016968,2]
[329254239,1718202647284,-200.0,0.0001697,2]
[329254240,1718202647298,-4643.59,0.0001699,2]
[329254241,1718202647316,-255.74,0.00017031,2]
[329254242,1718202647331,-347.36,0.00017051,2]
[329254243,1718202647348,-150.0,0.00017076,2]
[329254244,1718202647360,-384.66,0.00017103,2]
[329254245,1718202647372,-500.0,0.00017156,2]
[329254246,1718202647391,-23900.0,0.00017172,2]
[329254247,1718202647403,-409.14289488,0.00017258,2]
[329254248,1718202647424,-404.91,0.00017312,2]
[329254249,1718202647436,-250.0,0.00017312,2]
[329254250,1718202647464,-156.67,0.00017333,2]
[329254251,1718202647478,-482.66,0.00017361,2]
[329254252,1718202647492,-1097.901,0.00017412,2]
[329254253,1718202647505,-156.67,0.00017559,2]
[329254254,1718202647521,-156.67,0.00017785,2]
[329254255,1718202647548,-841.46,0.00017853,2]
[329254256,1718202647580,-841.46,0.00017858,2]
[329254257,1718202647602,-841.46,0.00017862,2]
[329254258,1718202647629,-841.46,0.00017867,2]
[329254259,1718202647665,-841.46,0.00017872,2]
[329254260,1718202647707,-841.46,0.00017877,2]
[329254261,1718202647722,-841.46,0.00017881,2]
[329254262,1718202647751,-841.46,0.00017886,2]
[329254263,1718202647783,-841.46,0.00017891,2]
[329254267,1718202647795,-841.46,0.00017895,2]
[329254276,1718202647821,-841.46,0.000179,2]
[329254281,1718202647839,-190.71,0.00017904,3]
[329254286,1718202647862,-841.46,0.00017905,2]
[329254290,1718202647879,-841.46,0.00017909,2]
[329254295,1718202647902,-841.46,0.00017914,2]
[329254297,1718202647920,-841.46,0.00017919,2]
[329254299,1718202647933,-841.46,0.00017923,2]
[329254303,1718202647957,-841.46,0.00017928,2]
[329254304,1718202647978,-841.46,0.00017933,2]
[329254306,1718202647991,-841.46,0.00017937,2]
[329254308,1718202648009,-841.46,0.00017942,2]
[329254309,1718202648022,-384.66,0.00017958,2]
[329254311,1718202648034,-156.67,0.00018011,2]
[329254313,1718202648045,-150.0,0.000181,2]